Cogmind - Beta 15 @@@ ROGUE MODE // 2025.08.31 @ 13:14:20 Player: C0-2MO Result: Destroyed by Lightning with EMDS Performance ------------- Evolutions (6) 3000 Regions Visited (25) 5000 Robots Destroyed (61) 305 Value Destroyed (2283) 2283 Prototype IDs (41) 820 Alien Tech Used (1) 200 Bonus (3439) 3439 TOTAL SCORE: 15047 Bonus ------- High Alert Combat Kills 24 Follower Combat Kills 1615 Network Hubs Disabled 400 Registered with UFD 300 Met Optimus in HQ 500 Met Imprinter 300 Met Zhirov 300 Cogmind --------- Core Integrity 0/1150 Matter 300/300 Energy 100/100 System Corruption 4% Temperature Cool (0) Movement Core (50) Location -4/Hub_04(d) Parts ------- > --- POWER (2) -------- (None) > --- PROPULSION (8) --- (None) > --- UTILITY (7) ------ Experimental Signal Interpreter Improved Utility Shielding Advanced Hacking Suite > --- WEAPON (2) ------- (None) > --- INVENTORY (5) ---- Surveybot 17 Chip Authchip [Processor] Dimensional Node Initializer Transdimensional Reconstructor Heavy Pick Peak State ------------ > --- POWER ------------ Light Antimatter Reactor Light Antimatter Reactor > --- PROPULSION ------- Nuclear Pulse Thruster Field Propulsion Drive Impulse Thruster Field Propulsion Array Field Propulsion Array Field Propulsion Array > --- UTILITY ---------- Large Storage Unit Long-range Sensor Array Experimental Signal Interpreter Advanced ECM Suite Advanced Cloaking Device Improved Hacking Suite Advanced Hacking Suite Rainbow Chip > --- WEAPON ----------- Advanced Datajack Plasma Sword > --- INVENTORY -------- Field Propulsion Array Advanced Cooling System Deep Structural Scanner Surveybot 17 Chip Stasis Canceller Graphene Brace Authchip [Processor] Authchip [Armor] A0-MCA's Component Scanner Advanced System Restoration Module Dimensional Node Initializer Transdimensional Reconstructor Improved Plasma Cutter CPS Tube [Rating: 151] Favorites ----------- Power Micro Nuclear Core Engine Ion Engine Power Core Micro Nuclear Core Reactor Light Antimatter Reactor Propulsion Cesium-ion Thruster Treads Light Treads Wheel Wheel Hover Unit Improved Gyrokinetic Inverter Flight Unit Cesium-ion Thruster Utility Improved Hacking Suite Device Advanced Sensor Array Storage Large Storage Unit Processor Advanced Signal Interpreter Hackware Improved Hacking Suite Protection Scrap Shield Weapon Makeshift Hammer Energy Gun Riot Gun Ballistic Gun Heavy Battle Rifle Ballistic Cannon Battle Cannon Launcher Improved Grenade Launcher Special Weapon Improved Remote Datajack Impact Weapon Makeshift Hammer Slashing Weapon Plasma Sword Piercing Weapon Spear Special Melee Weapon Improved Datajack Build | -11 -10 -10 -9 -9 -6 -6 -6 -6 -6 -6 -5 -5 -5 -5 -5 -5 -5 -4 -4 -4 -4 -4 -4 -4 -4 ------- Run | Yrd Mat Sub Rec Scr Fac Was Fac Low Low Zio Pro Fac Was Fac Upp Upp Zhi Pro Fac Was Fac Ext Cet Arc Hub Slots Evolved 12 | . . . . . 8 . . . . . . 2 . . . . . . 2 . . . . . . Power 1 | . . . . . . . . . . . . 1 . . . . . . . . . . . . . Propulsion 6 | . . . . . 4 . . . . . . 1 . . . . . . 1 . . . . . . Utility 5 | . . . . . 4 . . . . . . . . . . . . . 1 . . . . . . Weapon . | . . . . . . . . . . . . . . . . . . . . . . . . . . Parts Attached 138 | 7 5 13 2 . 36 . 10 1 4 2 . 7 . 6 1 . 4 . 12 1 14 6 4 . 3 Power 20 | 1 1 1 . . 4 . 1 . . . . 3 . 2 . . 2 . 2 . 2 1 . . . Engine 3 | 1 1 . . . 1 . . . . . . . . . . . . . . . . . . . . Core 10 | . . 1 . . 3 . 1 . . . . 3 . 2 . . . . . . . . . . . Reactor 7 | . . . . . . . . . . . . . . . . . 2 . 2 . 2 1 . . . Propulsion 39 | 2 . 1 1 . 14 . 2 . 3 . . 1 . 2 . . . . 7 . 3 1 1 . 1 Treads 1 | 1 . . . . . . . . . . . . . . . . . . . . . . . . . Leg . | . . . . . . . . . . . . . . . . . . . . . . . . . . Wheel 3 | 1 . 1 1 . . . . . . . . . . . . . . . . . . . . . . Hover 1 | . . . . . . . . . . . . . . . . . . . 1 . . . . . . Flight 34 | . . . . . 14 . 2 . 3 . . 1 . 2 . . . . 6 . 3 1 1 . 1 Utility 51 | 2 1 3 1 . 13 . 5 . 1 1 . 3 . 1 1 . 2 . 3 1 8 3 1 . 1 Device 26 | 1 . 1 . . 8 . 3 . . . . 2 . 1 1 . 1 . 1 1 4 2 . . . Storage 6 | 1 1 1 . . 1 . . . . . . 1 . . . . 1 . . . . . . . . Processor 6 | . . . . . 2 . 1 . . . . . . . . . . . 1 . 2 . . . . Hackware 7 | . . . 1 . 2 . 1 . 1 1 . . . . . . . . 1 . . . . . . Protection 6 | . . 1 . . . . . . . . . . . . . . . . . . 2 1 1 . 1 Artifact . | . . . . . . . . . . . . . . . . . . . . . . . . . . Weapon 28 | 2 3 8 . . 5 . 2 1 . 1 . . . 1 . . . . . . 1 1 2 . 1 Energy Gun 4 | . 1 2 . . . . . . . . . . . . . . . . . . . . 1 . . Energy Cannon . | . . . . . . . . . . . . . . . . . . . . . . . . . . Ballistic Gun 5 | 2 . 2 . . . . . . . . . . . . . . . . . . . . 1 . . Ballistic Cannon 3 | . . 2 . . . . . . . . . . . . . . . . . . . 1 . . . Launcher 3 | . . 1 . . 2 . . . . . . . . . . . . . . . . . . . . Special Weapon 2 | . 1 . . . . . . 1 . . . . . . . . . . . . . . . . . Impact Weapon 1 | . . 1 . . . . . . . . . . . . . . . . . . . . . . . Slashing Weapon 3 | . 1 . . . . . . . . 1 . . . 1 . . . . . . . . . . . Piercing Weapon 2 | . . . . . . . 1 . . . . . . . . . . . . . . . . . 1 Special Melee Weapon 5 | . . . . . 3 . 1 . . . . . . . . . . . . . 1 . . . . Unidentified Prototypes 12 | . . . . . 1 . 1 . . . . 1 . 1 . . 4 . . . 1 . 3 . . Parts Lost 39 | . . 2 1 . 8 . 4 . . . . . . 2 . . . 2 4 . 2 6 2 1 5 Power 3 | . . . . . 1 . . . . . . . . 1 . . . . 1 . . . . . . Propulsion 20 | . . . 1 . 4 . 3 . . . . . . 1 . . . 2 . . . 3 2 . 4 Utility 9 | . . 1 . . 1 . 1 . . . . . . . . . . . 1 . 2 1 . 1 1 Weapon 7 | . . 1 . . 2 . . . . . . . . . . . . . 2 . . 2 . . . Highest Loss Streak 4 | . . 1 1 . 3 . 2 . . . . . . 2 . . . 2 1 . 1 2 1 1 4 To Critical Strikes . | . . . . . . . . . . . . . . . . . . . . . . . . . . Average Backups 10 | 2 8 5 8 12 10 9 8 8 9 9 10 10 11 13 13 13 14 15 14 15 14 14 12 12 14 Power . | . 1 . 1 1 . . . . . . . . . . . . . 1 . . . . . . . Propulsion . | 1 2 1 1 1 . . . . . 1 1 . . 1 1 1 1 . . 1 1 1 1 . . Utility 4 | . 1 1 1 3 6 6 5 4 4 4 5 6 7 6 7 7 7 8 8 10 9 9 9 9 9 Weapon 2 | . 3 2 3 4 2 2 1 2 2 1 2 1 1 1 1 1 1 1 . . . . . 1 1 Tool/Special . | . . . . . . . . . . . . . . . . . . . . . . . . . . Unused Backups 24 | . 1 . . . 4 . . . . 1 . 1 . 2 1 . 1 . 1 . . 2 2 . 8 Power 2 | . . . . . 1 . . . . . . . . 1 . . . . . . . . . . . Propulsion 4 | . 1 . . . . . . . . . . . . 1 . . . . . . . . 2 . . Utility 13 | . . . . . 3 . . . . . . 1 . . 1 . 1 . 1 . . . . . 6 Weapon . | . . . . . . . . . . . . . . . . . . . . . . . . . . Tool/Special 5 | . . . . . . . . . . 1 . . . . . . . . . . . 2 . . 2 Average Slot Usage (%) 86 | . 100 88 99 84 86 100 97 87 87 93 93 91 88 85 82 82 83 76 77 68 75 63 57 49 35 Engine 1 | . 14 3 . . 1 . . . . . . . . . . . . . . . . . . . . Core 6 | . . 10 14 9 3 6 6 6 6 6 6 10 11 10 11 11 10 7 2 . . . . . . Reactor 1 | . . . . . . . . . . . . . . . . . . . 5 8 8 5 4 4 . Wheel 10 | . 14 27 27 28 1 . . . . . . . . . . . . . . . . . . . . Flight 18 | . . . . . 33 40 39 33 34 40 40 38 35 32 29 29 29 25 24 21 23 17 14 13 9 Device 8 | . 14 4 . . 10 13 11 12 13 13 13 11 11 11 11 11 11 11 13 12 12 12 9 7 . Storage 7 | . 14 6 14 13 5 6 6 6 6 6 6 5 5 5 5 5 5 5 4 4 4 4 4 4 3 Processor 4 | . . . . . 5 6 8 13 11 6 6 5 5 5 5 5 5 5 5 8 8 8 9 9 9 Hackware 8 | . . . 13 14 10 13 10 6 7 13 13 11 11 11 11 11 11 11 9 8 8 8 9 9 9 Protection 1 | . . 7 . . . . . . . . . . . . . . . . . . . . 2 . 1 Energy Gun 3 | . 9 6 14 9 . . . . . . . . . . . . . . . . . . . . . Ballistic Gun 2 | . 15 3 2 9 . . . . . . . . . . . . . . . . . . . 1 . Ballistic Cannon 2 | . . 11 . . . . . . . . . . . . . . . . . . . . 2 . . Impact Weapon 2 | . . 5 11 . 5 6 4 . . . . . . . . . . . . . . . . . . Slashing Weapon 1 | . 1 . . . . . . . . 5 6 5 5 5 5 5 5 5 4 4 4 1 . . . Special Melee Weapon 1 | . . . . . 3 6 5 . . . . . . . . . . . . . 3 1 . . . Peak Build Rating 151 | 7 9 21 22 24 65 64 67 65 64 68 63 78 76 92 95 95 105 102 136 135 151 151 122 103 96 Average Rating 58 | 4 8 17 21 20 53 64 62 60 60 63 63 72 75 86 93 94 96 84 117 134 142 121 106 97 66 On Entrance 70 | . 7 9 19 22 16 64 64 58 60 64 63 63 75 76 90 95 94 102 75 126 135 146 122 96 89 Naked Turns . | . . . . . . . . . . . . . . . . . . . . . . . . . . Heaviest Build 108 | 14 31 108 101 101 93 23 27 24 20 30 21 38 36 38 35 35 39 39 59 52 54 55 51 41 33 Greatest Support 67 | 10 10 26 26 26 33 32 32 27 28 32 22 40 40 45 45 45 45 45 67 65 65 59 52 35 35 Greatest Overweight (x) 9 | 1 3 4 3 3 5 . . . . . . . . 1 . . . 1 . . 1 9 1 1 1 Average Overweight (x) . | . 1 1 3 2 . . . . . . . . . . . . . . . . . . . . . Largest Inventory Capacity 25 | 8 15 25 25 25 25 10 10 10 10 10 10 15 15 15 15 15 15 15 15 15 15 15 15 15 15 Average Capacity 15 | 7 13 14 25 23 11 10 10 10 10 10 10 11 15 15 15 15 15 15 15 15 15 15 15 15 14 Most Carried 21 | 4 9 9 9 21 21 10 10 10 10 10 10 11 12 15 15 15 15 15 15 15 15 15 15 13 15 Average Carried 10 | 2 8 5 8 12 10 10 9 9 9 9 10 10 11 13 13 14 14 14 14 14 14 14 13 12 13 Final Capacity 25 | 8 15 25 25 25 10 10 10 10 10 10 10 15 15 15 15 15 15 15 15 15 15 15 15 15 5 Final Carried 21 | 4 9 8 8 21 10 10 9 10 10 10 10 11 12 12 15 14 15 15 15 15 15 15 13 13 5 Class Distribution -------------------- 41% | Mutant 22% | Hacker-Scout 12% | Hacker-Ninja 11% | Hacker-Sprinter 4% | Hacker-Mutant 3% | Scout Dominant Class ---------------- Mutant | -10/Materials Mutant | -10/Subcaves Mutant | -9/Recycling Mutant | -9/Scraptown Hacker-Sprinter | -6/Factory Hacker-Sprinter | -6/Waste Sprinter | -6/Factory Scout | -6/Lower Caves Scout | -6/Lower Caves Hacker-Scout | -6/Zion Hacker-Scout | -5/Proximity Caves Hacker-Scout | -5/Factory Hacker-Scout | -5/Waste Hacker-Scout | -5/Factory Hacker-Scout | -5/Upper Caves Hacker-Scout | -5/Upper Caves Hacker-Scout | -5/Zhirov Hacker-Scout | -4/Proximity Caves Hacker-Ninja | -4/Factory Hacker-Sprinter | -4/Waste Hacker-Ninja | -4/Factory Hacker-Mutant | -4/Extension Hacker-Mutant | -4/Cetus Hacker-Mutant | -4/Archives Hacker-Mutant | -4/Hub_04(d) Resources | -11 -10 -10 -9 -9 -6 -6 -6 -6 -6 -6 -5 -5 -5 -5 -5 -5 -5 -4 -4 -4 -4 -4 -4 -4 -4 ----------- Run | Yrd Mat Sub Rec Scr Fac Was Fac Low Low Zio Pro Fac Was Fac Upp Upp Zhi Pro Fac Was Fac Ext Cet Arc Hub Matter Collected 3461 | 294 57 784 33 10 489 . 170 100 50 40 . 170 . 150 29 . 120 5 146 124 25 374 208 . 83 Remotely . | . . . . . . . . . . . . . . . . . . . . . . . . . . Salvage Created 2125 | 105 57 359 116 . 371 . 77 . . . . 205 . 176 . . 242 . 222 . 33 . 140 . 22 Parts 97 | 6 5 23 3 . 23 . 1 . . . . 12 . 6 . . 5 . 4 . 3 . 3 . 3 Haulers Intercepted 2 | . . . . . . . . . . . . 1 . 1 . . . . . . . . . . . Recyclers Shooed . | . . . . . . . . . . . . . . . . . . . . . . . . . . Parts Field Recycled . | . . . . . . . . . . . . . . . . . . . . . . . . . . Retrieved Matter . | . . . . . . . . . . . . . . . . . . . . . . . . . . Parts Self-Destructed 17 | . . 15 . . . . . . . . 2 . . . . . . . . . . . . . . Prevented 2 | . . . . . . . . . . . . . . . . . 2 . . . . . . . . Kills | -11 -10 -10 -9 -9 -6 -6 -6 -6 -6 -6 -5 -5 -5 -5 -5 -5 -5 -4 -4 -4 -4 -4 -4 -4 -4 ------- Run | Yrd Mat Sub Rec Scr Fac Was Fac Low Low Zio Pro Fac Was Fac Upp Upp Zhi Pro Fac Was Fac Ext Cet Arc Hub Combat Hostiles Destroyed 34 | . 1 13 2 . 9 . 3 . . . . 3 . . . . . . . . . . 3 . . Melee 1 | . . . . . 1 . . . . . . . . . . . . . . . . . . . . Guns 10 | . 1 6 . . 3 . . . . . . . . . . . . . . . . . . . . Cannons 10 | . . 7 . . . . . . . . . . . . . . . . . . . . 3 . . AOE 12 | . . . 1 . 5 . 3 . . . . 3 . . . . . . . . . . . . . Classes Destroyed 12 | 2 2 4 1 . 1 . . . . . . 1 . . . . . . . . . . . . 1 Worker 1 | . . . . . . . . . . . . . . . . . . . . . . . . . 1 Builder 3 | . . . 1 . . . 1 . . . . 1 . . . . . . . . . . . . . Tunneler 1 | 1 . . . . . . . . . . . . . . . . . . . . . . . . . Hauler 2 | . . . . . . . . . . . . 1 . 1 . . . . . . . . . . . Recycler 3 | 1 . . . . 1 . . . . . . . . . . . . . 1 . . . . . . Operator 4 | . 1 . . . 1 . 1 . . . . . . . . . . . . . . . . . 1 Turret 2 | . . 2 . . . . . . . . . . . . . . . . . . . . . . . Watcher 11 | . . . . . 4 . . . . . . 1 . 3 . . . . 2 . 1 . . . . Swarmer 18 | . . 3 . . 9 . 3 . . . . 3 . . . . . . . . . . . . . Grunt 3 | . 1 2 . . . . . . . . . . . . . . . . . . . . . . . Sentry 3 | . . 1 2 . . . . . . . . . . . . . . . . . . . . . . Cetus Guard 3 | . . . . . . . . . . . . . . . . . . . . . . . 3 . . Subdweller 7 | . . 7 . . . . . . . . . . . . . . . . . . . . . . . Best Kill Streak 5 | 1 2 3 1 . 5 . 3 . . . . 3 . 1 . . . . 1 . 1 . 1 . 1 Combat Bots Only 4 | . 1 3 1 . 4 . 3 . . . . 3 . . . . . . . . . . 1 . . Max Kills in Single Turn 3 | 1 1 1 1 . 3 . 2 . . . . 3 . 1 . . . . 1 . 1 . 1 . 1 Gunslinging . | . . . . . . . . . . . . . . . . . . . . . . . . . . Exploded 3 | . . . 1 . 3 . 2 . . . . 3 . . . . . . . . . . . . . Melee 1 | . . . . . 1 . . . . . . . . . . . . . . . . . . . . Uniques/NPCs Destroyed . | . . . . . . . . . . . . . . . . . . . . . . . . . . Combat | -11 -10 -10 -9 -9 -6 -6 -6 -6 -6 -6 -5 -5 -5 -5 -5 -5 -5 -4 -4 -4 -4 -4 -4 -4 -4 -------- Run | Yrd Mat Sub Rec Scr Fac Was Fac Low Low Zio Pro Fac Was Fac Upp Upp Zhi Pro Fac Was Fac Ext Cet Arc Hub Hostile Shots Fired 595 | . 3 90 16 . 79 . 70 . . . . 34 . 51 . . . 14 65 . 25 76 16 4 52 Missed 282 | . . 29 4 . 38 . 47 . . . . 13 . 23 . . . 9 34 . 17 35 5 3 25 Hits 313 | . 3 61 12 . 41 . 23 . . . . 21 . 28 . . . 5 31 . 8 41 11 1 27 Melee 1 | . . . . . . . . . . . . . . . . . . 1 . . . . . . . Projectile 312 | . 3 61 12 . 41 . 23 . . . . 21 . 28 . . . 4 31 . 8 41 11 1 27 AOE 3 | . . . . . . . . . . . . . . . . . . . . . 3 . . . . Critical Strikes 11 | . . 2 . . 1 . . . . . . . . . . . . . 2 . . 2 1 . 3 Actively Blocked 3 | . . . . . . . . . . . . . . . . . . . . . . 1 1 . 1 Part Disruptions 1 | . . . . . 1 . . . . . . . . . . . . . . . . . . . . Damage Taken 6239 | . 43 800 178 . 576 . 314 . . . . 397 . 427 . . . 110 615 . 308 1068 279 21 1103 Core 1857 | . . 84 28 . 136 . 129 . . . . 156 . 81 . . . 53 110 . 49 286 23 . 722 Absorbed by Shields 21 | . . . . . . . . . . . . . . . . . . . . . . 21 . . . Redirected to Shielding 94 | . . . . . . . . . . . . . . . . . . . . . . . . . 94 Regen/Repaired (Parts) 432 | . . . . . 170 . 12 . . 166 . 29 . 9 . . . . 6 32 8 . . . . Core Remaining (%) 73 | 100 . . . 55 . . . . . . 68 . . . . . . 71 . . . . . . . Volleys Fired 148 | 6 16 60 1 . 11 . 2 . . . . 4 . . . . . . 10 . . . 26 3 9 Largest 2 | 2 2 2 2 . 2 . 1 . . . . 1 . . . . . . 1 . . . 1 1 2 Hottest 275 | 40 100 112 83 . 81 . 36 . . . . 36 . . . . . . 7 . . . 80 35 275 Shots Fired 229 | 12 24 117 2 . 18 . 2 . . . . 4 . . . . . . 10 . . . 26 3 11 Gun 98 | 12 16 44 2 . 8 . . . . . . . . . . . . . . . . . 2 3 11 Cannon 101 | . . 70 . . 7 . . . . . . . . . . . . . . . . . 24 . . Launcher 12 | . . 3 . . 3 . 2 . . . . 4 . . . . . . . . . . . . . Special 18 | . 8 . . . . . . . . . . . . . . . . . 10 . . . . . . Kinetic 171 | 12 10 99 1 . 15 . . . . . . . . . . . . . . . . . 24 3 7 Thermal 35 | . 14 15 . . . . . . . . . . . . . . . . . . . . 2 . 4 Explosive 12 | . . 3 . . 3 . 2 . . . . 4 . . . . . . . . . . . . . Electromagnetic 1 | . . . 1 . . . . . . . . . . . . . . . . . . . . . . Robot Hit Streak 28 | 3 8 28 5 . 2 . . . . . . 2 . . . . . . 4 . . . 4 2 . Robot Miss Streak 5 | 1 2 5 . . 4 . 5 . . . . 1 . . . . . . 2 . . . 2 1 . Penetration Max . | . . . . . . . . . . . . . . . . . . . . . . . . . . Secondary Targets 1 | . . 1 . . . . . . . . . . . . . . . . . . . . . . . Max Gunslinging Chain 1 | . . 1 . . . . . . . . . . . . . . . . . . . . . . . Shots Hit Robots 195 | 8 10 72 9 . 19 . 3 . . . 1 13 . 9 . . 6 . 12 . 3 13 15 2 . Core Hits 80 | 3 5 24 2 . 16 . 3 . . . . 7 . 3 . . 3 . 2 . 1 1 6 . 4 Critical Kills 6 | . . 3 . . . . . . . . . . . . . . . . . . . . 3 . . Critical Parts Destroyed 12 | . . 4 1 . 2 . 1 . . . . . . . . . . . . . . . 4 . . Critical Strikes 33 | . 1 15 2 . 2 . 1 . . . . . . 2 . . . . . . . 1 9 . . Burn 2 | . 1 1 . . . . . . . . . . . . . . . . . . . . . . . Destroy 19 | . . 10 . . . . . . . . . . . . . . . . . . . . 9 . . Blast 4 | . . 4 . . . . . . . . . . . . . . . . . . . . . . . Smash 5 | . . . 2 . 2 . 1 . . . . . . . . . . . . . . . . . . Sever 3 | . . . . . . . . . . . . . . 2 . . . . . . . 1 . . . Melee Attacks 422 | . 2 33 13 . 83 . 46 1 4 1 5 48 . 61 6 3 6 5 49 . 36 20 . . . Impact 156 | . . 33 13 . 74 . 36 . . . . . . . . . . . . . . . . . . Slashing 232 | . 2 . . . . . . . . . 5 48 . 61 6 3 6 5 49 . 35 12 . . . Piercing 20 | . . . . . 6 . 8 1 4 1 . . . . . . . . . . . . . . . Sneak Attacks 23 | . . . 1 . 6 . 1 . . . . 3 . 2 . . . . 1 . 1 8 . . . Combat Hostiles 1 | . . . . . 1 . . . . . . . . . . . . . . . . . . . . Follow-up Attacks . | . . . . . . . . . . . . . . . . . . . . . . . . . . Damage Inflicted 7012 | 78 133 1418 401 . 1052 . 377 . . . 34 906 . 514 . . 549 . 362 . 224 223 466 . 275 Guns 896 | 78 133 505 19 . 85 . . . . . . . . . . . . . . . . . 76 . . Cannons 1270 | . . 858 . . 22 . . . . . . . . . . . . . . . . . 390 . . Explosions 1169 | . . . 38 . 306 . 201 . . . . 355 . . . . . . . . . . . . 269 Melee 3671 | . . 55 344 . 639 . 176 . . . 34 551 . 514 . . 549 . 362 . 224 223 . . . Ramming 6 | . . . . . . . . . . . . . . . . . . . . . . . . . 6 Kinetic 1805 | 78 56 1174 . . 107 . . . . . . . . . . . . . . . . . 390 . . Thermal 380 | . 77 189 38 . . . . . . . . . . . . . . . . . . . 76 . . Explosive 862 | . . . . . 306 . 201 . . . . 355 . . . . . . . . . . . . . Electromagnetic 288 | . . . 19 . . . . . . . . . . . . . . . . . . . . . 269 Impact 1208 | . . 55 344 . 633 . 176 . . . . . . . . . . . . . . . . . . Slashing 2457 | . . . . . . . . . . . 34 551 . 514 . . 549 . 362 . 224 223 . . . Piercing 6 | . . . . . 6 . . . . . . . . . . . . . . . . . . . . Highest Corruption 11 | . . . . . 4 11 11 . . . . . 7 7 3 . . . 1 1 1 . . . 3 Average Corruption 2 | . . . . . 1 2 5 . . . . . 7 3 2 . . . 1 1 1 . . . 2 Corruption Purged 37 | . . . . . 5 1 20 . . . . . . 7 3 . . . . . 1 . . . . Corruption Blocked . | . . . . . . . . . . . . . . . . . . . . . . . . . . Effects 36 | . . . . . 5 1 14 . . . . . . 4 5 . . . . . 5 . . . 2 Message Errors 12 | . . . . . 2 . 5 . . . . . . 1 1 . . . . . 1 . . . 2 Matter Fused 7 | . . . . . 1 1 1 . . . . . . 1 1 . . . . . 2 . . . . Heat Flow Errors 5 | . . . . . . . 2 . . . . . . . 2 . . . . . 1 . . . . Energy Discharges 2 | . . . . . . . . . . . . . . 1 . . . . . . 1 . . . . Parts Rejected 1 | . . . . . . . 1 . . . . . . . . . . . . . . . . . . Parts Fused 1 | . . . . . 1 . . . . . . . . . . . . . . . . . . . . Data Loss (minor) 7 | . . . . . 1 . 5 . . . . . . 1 . . . . . . . . . . . Data Loss (major) 1 | . . . . . . . . . . . . . . . 1 . . . . . . . . . . Overload Shots 3 | . . . . . . . . . . . . . . . . . . . . . . . . . 3 Overflow Damage 936 | . . . 138 . 358 . 144 . . . . 79 . 62 . . 78 . 52 . 4 . 8 . 13 Projectiles 8 | . . . . . . . . . . . . . . . . . . . . . . . 8 . . Explosions 19 | . . . . . . . . . . . . 6 . . . . . . . . . . . . 13 Melee 909 | . . . 138 . 358 . 144 . . . . 73 . 62 . . 78 . 52 . 4 . . . . Knockbacks 11 | . . 8 1 . 2 . . . . . . . . . . . . . . . . . . . . Impact 2 | . . . 1 . 1 . . . . . . . . . . . . . . . . . . . . Kinetic 9 | . . 8 . . 1 . . . . . . . . . . . . . . . . . . . . Secondary . | . . . . . . . . . . . . . . . . . . . . . . . . . . Self-Inflicted Damage 195 | . . . . . . . 27 . . . . . . . . . . . . . . . . . 168 Shots 3 | . . . . . . . 1 . . . . . . . . . . . . . . . . . 2 Rammed 2 | . . . . . . . . . . . . . . . . . . . . . . . . . 2 Targets Rammed 2 | . . . . . . . . . . . . . . . . . . . . . . . . . 2 Kicked . | . . . . . . . . . . . . . . . . . . . . . . . . . . Crushed . | . . . . . . . . . . . . . . . . . . . . . . . . . . Highest Temperature 324 | . 100 5 39 . 7 . 148 . . . . 134 . 5 269 . . 4 249 138 242 99 52 . 324 Average Temperature 61 | . 33 5 22 . 2 . 70 . . . . 41 . 1 127 . . 4 94 54 69 32 13 . 186 Received Heat Transfer 711 | . 24 159 45 . 48 . 39 . . . . 36 . 27 . . . 30 57 . 9 156 . . 81 Effects 5 | . . . . . . . . . . . . . . . . . . . 4 . . . . . 1 Energy Bleed 1 | . . . . . . . . . . . . . . . . . . . . . . . . . 1 Interference 4 | . . . . . . . . . . . . . . . . . . . 4 . . . . . . Siege Activations . | . . . . . . . . . . . . . . . . . . . . . . . . . . Martial Activations . | . . . . . . . . . . . . . . . . . . . . . . . . . . Shielding Activations . | . . . . . . . . . . . . . . . . . . . . . . . . . . Robots Disrupted . | . . . . . . . . . . . . . . . . . . . . . . . . . . Combat Hostiles . | . . . . . . . . . . . . . . . . . . . . . . . . . . Robots Corrupted 5 | . . . 2 . 2 . 1 . . . . . . . . . . . . . . . . . . Combat Hostiles 1 | . . . 1 . . . . . . . . . . . . . . . . . . . . . . Parts Fried 14 | . . . 6 . 5 . 3 . . . . . . . . . . . . . . . . . . Impact Corruptions 19 | . . . 6 . 9 . 4 . . . . . . . . . . . . . . . . . . Robots Melted . | . . . . . . . . . . . . . . . . . . . . . . . . . . Combat Hostiles . | . . . . . . . . . . . . . . . . . . . . . . . . . . Parts Melted . | . . . . . . . . . . . . . . . . . . . . . . . . . . Heat Transferred 938 | . 259 555 50 . . . . . . . . . . . . . . . . . . . 74 . . Parts Sabotaged . | . . . . . . . . . . . . . . . . . . . . . . . . . . Parts Stolen . | . . . . . . . . . . . . . . . . . . . . . . . . . . Parts Stripped . | . . . . . . . . . . . . . . . . . . . . . . . . . . Power Chain Reactions 2 | . . . 1 . . . . . . . . . . . . . . . . . . . . . 1 Alert | -11 -10 -10 -9 -9 -6 -6 -6 -6 -6 -6 -5 -5 -5 -5 -5 -5 -5 -4 -4 -4 -4 -4 -4 -4 -4 ------- Run | Yrd Mat Sub Rec Scr Fac Was Fac Low Low Zio Pro Fac Was Fac Upp Upp Zhi Pro Fac Was Fac Ext Cet Arc Hub Maximum Alert Level 3 | . . . . . 2 . 2 . . . . 3 1 2 . . . . . . 3 2 1 . 3 Low Security (%) 50 | 100 100 . 100 . 17 100 44 . . . . 20 . 37 . . . . 100 100 10 . 99 100 6 Level 1 28 | . . . . . 58 . 55 . . . . 24 100 61 . . . . . . 3 79 . . 7 Level 2 15 | . . . . . 23 . . . . . . 15 . 1 . . . . . . 74 20 . . 45 Level 3 5 | . . . . . . . . . . . . 40 . . . . . . . . 11 . . . 40 Level 4 . | . . . . . . . . . . . . . . . . . . . . . . . . . . Level 5 . | . . . . . . . . . . . . . . . . . . . . . . . . . . High Security . | . . . . . . . . . . . . . . . . . . . . . . . . . . Max Security . | . . . . . . . . . . . . . . . . . . . . . . . . . . Peak Influence 833 | 5 30 . 94 . 582 152 415 . . . . 833 272 426 . . . . 112 1 778 472 208 77 804 Initial 282 | . 3 . 94 . . 152 106 . . . . 7 267 190 . . . . 53 1 . 282 184 62 19 Average 241 | 1 3 . 26 . 307 152 201 . . . . 511 268 244 . . . . 23 . 552 351 169 70 598 Influence Increases 8629 | 10 128 335 211 . 1142 . 802 30 . . 73 1130 15 663 . . 10 165 386 . 1347 910 92 15 1165 Destroy 0b10 Robot/C 1540 | . 20 160 40 . 180 . 80 . . . 60 60 . . . . . . . . 420 440 80 . . Destroy 0b10 Robot/NC 160 | 10 5 . 5 . 30 . 10 . . . . 15 . 20 . . 10 . 15 . 25 5 . . 10 Destroy Leader 198 | . 10 10 . . 38 . 20 . . . . 14 . 8 . . . . 4 . 54 40 . . . Allied During Kill 422 | . . . . . . . 1 . . . 13 . . . . . . . . . 259 145 4 . . Successful Hack 479 | . 54 . 7 . 144 . 53 . . . . 45 . 25 . . . . 59 . 52 11 . . 29 Select Force Hacks 400 | . . . 150 . . . 30 . . . . 110 . 110 . . . . . . . . . . . Disable Machine 450 | . . . . . 15 . 15 . . . . 45 . . . . . . . . 90 . . 15 270 Anti-Garrison Action 950 | . . . . . 200 . 200 . . . . 400 . . . . . . . . . . . . 150 Destroy Structure 1300 | . 9 . 9 . 85 . 63 . . . . 66 . 80 . . . . 68 . 432 44 8 . 436 Partial Spotted 405 | . . . . . 75 . 75 . . . . 75 15 60 . . . . 45 . . 30 . . 30 Lose Combat Pursuer 2325 | . 30 165 . . 375 . 255 30 . . . 300 . 360 . . . 165 195 . 15 195 . . 240 Influence Decreases 7875 | 5 133 137 409 . 705 285 539 324 104 17 60 378 508 612 190 76 67 80 468 3 769 1158 266 114 468 Entered New Map 2029 | . 2 . 104 . . 285 46 154 24 17 . 6 498 82 120 26 57 . 32 2 . 296 146 94 38 Time Decay 3684 | 5 131 127 295 . 475 . 375 170 80 . 40 342 10 350 70 50 10 60 252 1 429 262 60 10 80 Search Patrol Dispatched 300 | . . . . . 150 . . . . . . . . 150 . . . . . . . . . . . Lost Part 356 | . . 10 10 . 80 . 40 . . . . . . 20 . . . 20 16 . 20 60 20 10 50 Lost Ally 948 | . . . . . . . 78 . . . 20 30 . 10 . . . . 60 . 320 390 40 . . Purge Threat 558 | . . . . . . . . . . . . . . . . . . . 108 . . 150 . . 300 Squads Dispatched 120 | . 2 . . . 27 . 16 . . . . 20 . 15 . . . . 15 . 14 2 . . 9 Investigation 84 | . . . . . 20 . 11 . . . . 17 . 13 . . . . 11 . 8 2 . . 2 Extermination 20 | . . . . . 6 . 3 . . . . 2 . 2 . . . . 3 . 3 . . . 1 Reinforcement 11 | . 2 . . . 1 . 2 . . . . 1 . . . . . . 1 . 2 . . . 2 Assault 5 | . . . . . . . . . . . . . . . . . . . . . 1 . . . 4 Garrison . | . . . . . . . . . . . . . . . . . . . . . . . . . . Intercept . | . . . . . . . . . . . . . . . . . . . . . . . . . . Searches Triggered 2 | . . . . . 1 . . . . . . . . 1 . . . . . . . . . . . Construction Impeded 1 | . . . . . . . 1 . . . . . . . . . . . . . . . . . . Haulers Reinforced 2 | . . . . . . . . . . . . 1 . . . . . . . . 1 . . . . Active Scanning Responses . | . . . . . . . . . . . . . . . . . . . . . . . . . . Cargo Convoy Interrupts . | . . . . . . . . . . . . . . . . . . . . . . . . . . Stealth | -11 -10 -10 -9 -9 -6 -6 -6 -6 -6 -6 -5 -5 -5 -5 -5 -5 -5 -4 -4 -4 -4 -4 -4 -4 -4 --------- Run | Yrd Mat Sub Rec Scr Fac Was Fac Low Low Zio Pro Fac Was Fac Upp Upp Zhi Pro Fac Was Fac Ext Cet Arc Hub Distress Signals 18 | . . . . . 1 . 2 . . . . 1 . 3 . . . . 4 . 3 2 1 . 1 Communications Jammed . | . . . . . . . . . . . . . . . . . . . . . . . . . . Distress Signals . | . . . . . . . . . . . . . . . . . . . . . . . . . . Times Spotted 384 | . 10 23 2 . 44 4 22 2 5 . 3 30 3 42 . . . 17 59 . 34 50 1 3 30 Peak Tracking Total 14 | . 3 4 1 . 10 5 6 2 3 . 3 8 3 8 . . . 11 14 . 7 11 5 3 14 Tactical Retreats 105 | . 2 7 . . 15 . 8 1 1 . . 11 . 13 . . . 3 15 . 12 10 . . 7 Traps | -11 -10 -10 -9 -9 -6 -6 -6 -6 -6 -6 -5 -5 -5 -5 -5 -5 -5 -4 -4 -4 -4 -4 -4 -4 -4 ------- Run | Yrd Mat Sub Rec Scr Fac Was Fac Low Low Zio Pro Fac Was Fac Upp Upp Zhi Pro Fac Was Fac Ext Cet Arc Hub Traps Triggered 16 | . 1 . . . 2 . 2 . . . . 2 . . . . . . 1 . . 6 . . 2 Indirectly 1 | . . . . . . . . . . . . . . . . . . . . . . . . . 1 Trap Hack Attempts . | . . . . . . . . . . . . . . . . . . . . . . . . . . Triggered . | . . . . . . . . . . . . . . . . . . . . . . . . . . Disarmed . | . . . . . . . . . . . . . . . . . . . . . . . . . . Reprogrammed . | . . . . . . . . . . . . . . . . . . . . . . . . . . Reused . | . . . . . . . . . . . . . . . . . . . . . . . . . . Traps Extracted . | . . . . . . . . . . . . . . . . . . . . . . . . . . Installed . | . . . . . . . . . . . . . . . . . . . . . . . . . . Triggered . | . . . . . . . . . . . . . . . . . . . . . . . . . . Machines | -11 -10 -10 -9 -9 -6 -6 -6 -6 -6 -6 -5 -5 -5 -5 -5 -5 -5 -4 -4 -4 -4 -4 -4 -4 -4 ---------- Run | Yrd Mat Sub Rec Scr Fac Was Fac Low Low Zio Pro Fac Was Fac Upp Upp Zhi Pro Fac Was Fac Ext Cet Arc Hub Machines Disabled 34 | . 1 1 . . 1 . 1 . . . . 3 . . 1 . . . . . 6 . . 1 19 Max in Single Turn 13 | . 1 1 . . 1 . 1 . . . . 2 . . 1 . . . . . 1 . . 1 13 Garrison Access 12 | . . . . . 4 . 1 . . . . 2 . 1 . . . . 2 . . . . . 2 Network Hub 2 | . . . . . . . . . . . . . . . . . . . . . . . . . 2 Machines Repaired . | . . . . . . . . . . . . . . . . . . . . . . . . . . Machines Dismantled . | . . . . . . . . . . . . . . . . . . . . . . . . . . Machines Sabotaged . | . . . . . . . . . . . . . . . . . . . . . . . . . . Overloaded Fab Kills 3 | . . . . . . . . . . . . . . 3 . . . . . . . . . . . Hacking | -11 -10 -10 -9 -9 -6 -6 -6 -6 -6 -6 -5 -5 -5 -5 -5 -5 -5 -4 -4 -4 -4 -4 -4 -4 -4 --------- Run | Yrd Mat Sub Rec Scr Fac Was Fac Low Low Zio Pro Fac Was Fac Upp Upp Zhi Pro Fac Was Fac Ext Cet Arc Hub Machines Accessed 202 | . 5 1 9 4 40 . 25 1 . . . 27 . 19 2 . 4 1 26 . 22 10 . . 6 Terminals 102 | . 5 . 4 . 19 . 13 . . . . 12 . 8 1 . . 1 13 . 13 8 . . 5 Fabricators 13 | . . . . . 1 . 3 . . . . 2 . 2 . . . . 2 . 3 . . . . Repair Stations 9 | . . . . . 4 . 1 . . . . 2 . 1 . . . . 1 . . . . . . Recycling Units 43 | . . . 5 . 8 . 6 . . . . 6 . 5 . . . . 7 . 4 2 . . . Scanalyzers 13 | . . . . . 4 . 1 . . . . 3 . 2 . . . . 1 . 2 . . . . Garrison Access 11 | . . . . . 4 . 1 . . . . 2 . 1 . . . . 2 . . . . . 1 Total Hacks 536 | . 21 1 23 34 89 . 65 1 . . . 70 . 39 5 . 17 1 72 . 59 18 . . 21 Successful 365 | . 14 1 14 34 53 . 39 1 . . . 37 . 28 5 . 17 1 57 . 39 13 . . 12 Failed 168 | . 6 . 9 . 35 . 25 . . . . 33 . 11 . . . . 15 . 20 5 . . 9 Catastrophic 17 | . 1 . 1 . 3 . 4 . . . . 1 . 2 . . . . 1 . 1 . . . 3 Database Lockouts 3 | . 1 . . . 1 . 1 . . . . . . . . . . . . . . . . . . Manual 333 | . 21 . 20 . 64 . 37 . . 1 . 53 . 25 . . . . 48 . 44 10 . . 10 Terminals 314 | . 21 . 18 . 53 . 37 . . . . 41 . 20 4 . . 1 47 . 38 14 . . 20 Fabricators 31 | . . . . . 1 . 6 . . . . 3 . 4 . . . . 6 . 11 . . . . Repair Stations 17 | . . . . . 6 . 1 . . . . 7 . 1 . . . . 2 . . . . . . Recycling Units 54 | . . . 5 . 10 . 7 . . . . 8 . 6 . . . . 8 . 6 4 . . . Scanalyzers 48 | . . . . . 13 . 12 . . . . 5 . 7 . . . . 7 . 4 . . . . Garrison Access 18 | . . . . . 6 . 2 . . . . 6 . 1 . . . . 2 . . . . . 1 Terminal Hacks 121 | . 5 1 2 34 6 . 5 1 . . . 8 . 1 5 . 17 1 14 . 9 6 . . 6 Record 46 | . . . . 34 1 . . . . . . . . . 5 . 5 1 . . . . . . . Part Schematic 14 | . . . 1 . 1 . . . . . . 4 . . . . 4 . 4 . . . . . . Robot Analysis 16 | . 4 . 1 . 2 . 2 . . . . 1 . . . . 4 . 1 . . . . . 1 Prototype ID Bank 5 | . . . . . . . 1 . . . . . . . . . 4 . . . . . . . . Open Door 6 | . . . . . . . . 1 . . . . . . . . . . . . . 5 . . . Branch Access Points 2 | . . . . . . . 1 . . . . . . . . . . . . . 1 . . . . Emergency Access Points 1 | . . . . . . . . . . . . . . . . . . . . . . . . . 1 Machine Index 1 | . . . . . . . . . . . . . . . . . . . . . . . . . 1 Terminal Index 5 | . 1 . . . . . . . . . . 1 . 1 . . . . 1 . 1 . . . . Fabricator Index 2 | . . . . . . . . . . . . . . . . . . . 1 . 1 . . . . Unreport Threat 5 | . . . . . . . . . . . . . . . . . . . 2 . . 1 . . 2 Extermination Status 1 | . . . . . . . . . . . . . . . . . . . 1 . . . . . . Recall Extermination 5 | . . . . . 2 . . . . . . 2 . . . . . . 1 . . . . . . Recall Assault 1 | . . . . . . . . . . . . . . . . . . . . . 1 . . . . Registered Components 1 | . . . . . . . . . . . . . . . . . . . 1 . . . . . . Registered Prototypes 1 | . . . . . . . . . . . . . . . . . . . 1 . . . . . . Zone Layout 8 | . . . . . . . 1 . . . . . . . . . . . 1 . 5 . . . 1 Proto ID Catalog 1 | . . 1 . . . . . . . . . . . . . . . . . . . . . . . Fabricator Hacks 14 | . . . . . . . 5 . . . . 1 . 2 . . . . 2 . 4 . . . . Network Status 4 | . . . . . . . 2 . . . . 1 . 1 . . . . . . . . . . . Load Schematic 5 | . . . . . . . 1 . . . . . . . . . . . 2 . 2 . . . . Build 5 | . . . . . . . 2 . . . . . . 1 . . . . . . 2 . . . . Repair Station Hacks 4 | . . . . . 2 . . . . . . 2 . . . . . . . . . . . . . Scan Component 2 | . . . . . 1 . . . . . . 1 . . . . . . . . . . . . . Repair 2 | . . . . . 1 . . . . . . 1 . . . . . . . . . . . . . Recycling Unit Hacks . | . . . . . . . . . . . . . . . . . . . . . . . . . . Scanalyzer 32 | . . . . . 7 . 11 . . . . . . 4 . . . . 6 . 4 . . . . Insert Component 17 | . . . . . 5 . 4 . . . . . . 2 . . . . 4 . 2 . . . . Analyze 15 | . . . . . 2 . 7 . . . . . . 2 . . . . 2 . 2 . . . . Garrison Access Hacks 7 | . . . . . 3 . . . . . . . . 1 . . . . 2 . . . . . 1 Unlock Access 1 | . . . . . . . . . . . . . . . . . . . . . . . . . 1 Seal Access 6 | . . . . . 3 . . . . . . . . 1 . . . . 2 . . . . . . Unauthorized Hacks 187 | . 9 . 12 . 35 . 18 . . . . 26 . 20 . . . . 33 . 22 7 . . 5 Terminals 117 | . 9 . 7 . 22 . 9 . . . . 12 . 10 . . . . 22 . 16 5 . . 5 Track 5 | . . . . . . . . . . . . . . . . . . . 1 . 1 1 . . 2 Assimilate 7 | . . . . . 1 . . . . . . 1 . 1 . . . . 3 . . 1 . . . Botnet 47 | . 4 . 3 . 8 . 4 . . . . 4 . 3 . . . . 9 . 8 1 . . 3 Disrupt 1 | . . . . . . . . . . . . . . . . . . . 1 . . . . . . Operators 1 | . . . . . 1 . . . . . . . . . . . . . . . . . . . . Skim 56 | . 5 . 4 . 12 . 5 . . . . 7 . 6 . . . . 8 . 7 2 . . . Fabricators 10 | . . . . . 1 . . . . . . 1 . 2 . . . . 3 . 3 . . . . Prioritize 3 | . . . . . . . . . . . . . . 1 . . . . . . 2 . . . . Liberate 1 | . . . . . . . . . . . . . . . . . . . 1 . . . . . . Overload 1 | . . . . . . . . . . . . . . 1 . . . . . . . . . . . Download 1 | . . . . . . . . . . . . 1 . . . . . . . . . . . . . Recompile 4 | . . . . . 1 . . . . . . . . . . . . . 2 . 1 . . . . Repair Stations 8 | . . . . . 3 . 1 . . . . 2 . 1 . . . . 1 . . . . . . Patch 8 | . . . . . 3 . 1 . . . . 2 . 1 . . . . 1 . . . . . . Recycling Units 42 | . . . 5 . 8 . 6 . . . . 6 . 5 . . . . 7 . 3 2 . . . Tunnel 5 | . . . 5 . . . . . . . . . . . . . . . . . . . . . . Fedlink 37 | . . . . . 8 . 6 . . . . 6 . 5 . . . . 7 . 3 2 . . . Scanalyzers 6 | . . . . . . . 1 . . . . 3 . 2 . . . . . . . . . . . Extract 6 | . . . . . . . 1 . . . . 3 . 2 . . . . . . . . . . . Garrison Access 4 | . . . . . 1 . 1 . . . . 2 . . . . . . . . . . . . . Jam 4 | . . . . . 1 . 1 . . . . 2 . . . . . . . . . . . . . Data Cores Recovered 1 | . . . . . . . 1 . . . . . . . . . . . . . . . . . . Used . | . . . . . . . . . . . . . . . . . . . . . . . . . . Hacking Detections 126 | . 5 . 4 . 25 . 17 . . . . 17 . 11 . . . . 16 . 19 7 . . 5 Full Trace Events 25 | . . . 4 . 7 . 2 . . . . 3 . 4 . . . . 1 . 4 . . . . Feedback Events 2 | . . . . . 1 . 1 . . . . . . . . . . . . . . . . . . Corruption 1 | . . . . . 1 . . . . . . . . . . . . . . . . . . . . Hackware Fried 1 | . . . . . . . 1 . . . . . . . . . . . . . . . . . . Feedback Blocked . | . . . . . . . . . . . . . . . . . . . . . . . . . . Robot Schematics Acquired 4 | . . . . . . . . . . 4 . . . . . . . . . . . . . . . Robots Built 7 | . . . . . . . 4 . . . . . . . . . . . . . 3 . . . . Authchips . | . . . . . . . . . . . . . . . . . . . . . . . . . . Time 254 | . . . . . . . 67 . . . . . . . . . . . . . 187 . . . . Total Robot Build Rating 37 | . . . . . . . 16 . . . . . . . . . . . . . 21 . . . . Part Schematics Acquired 54 | . . . 1 . 2 . 8 . . 15 . 12 . 4 . . 4 . 6 . 2 . . . . Parts Built 5 | . . . . . . . 2 . . . . . . 2 . . . . . . 1 . . . . Authchips 1 | . . . . . . . 1 . . . . . . . . . . . . . . . . . . Time 257 | . . . . . . . 47 . . . . . . 117 . . . . . . 93 . . . . Total Part Build Rating 31 | . . . . . . . 10 . . . . . . 14 . . . . . . 7 . . . . Parts Repaired 2 | . . . . . 1 . . . . . . 1 . . . . . . . . . . . . . Time 69 | . . . . . 50 . . . . . . 19 . . . . . . . . . . . . . Parts Recycled . | . . . . . . . . . . . . . . . . . . . . . . . . . . Recycled Matter . | . . . . . . . . . . . . . . . . . . . . . . . . . . Retrieved Matter . | . . . . . . . . . . . . . . . . . . . . . . . . . . Retrieved Components . | . . . . . . . . . . . . . . . . . . . . . . . . . . Parts Scanalyzed 11 | . . . . . 1 . 4 . . . . . . 2 . . . . 2 . 2 . . . . Part Schematics Acquired 10 | . . . . . 1 . 4 . . . . . . 1 . . . . 2 . 2 . . . . Parts Damaged 2 | . . . . . 1 . . . . . . . . 1 . . . . . . . . . . . Bothacking | -11 -10 -10 -9 -9 -6 -6 -6 -6 -6 -6 -5 -5 -5 -5 -5 -5 -5 -4 -4 -4 -4 -4 -4 -4 -4 ------------ Run | Yrd Mat Sub Rec Scr Fac Was Fac Low Low Zio Pro Fac Was Fac Upp Upp Zhi Pro Fac Was Fac Ext Cet Arc Hub Used RIF Installer . | . . . . . . . . . . . . . . . . . . . . . . . . . . Robots Hacked 7 | . . . . . 3 . 1 . . . . . . . . . . . 3 . . . . . . Non-combat 5 | . . . . . 3 . . . . . . . . . . . . . 2 . . . . . . Combat . | . . . . . . . . . . . . . . . . . . . . . . . . . . Robot Hacks Applied 5 | . . . . . 3 . . . . . . . . . . . . . 2 . . . . . . find_chute 4 | . . . . . 3 . . . . . . . . . . . . . 1 . . . . . . find_fabricator 1 | . . . . . . . . . . . . . . . . . . . 1 . . . . . . Manual 2 | . . . . . . . 1 . . . . . . . . . . . 1 . . . . . . Relay Couplers Released 3 | . . . . . 2 . . . . . . . . . . . . . . . . . . . 1 Machine Destruction 3 | . . . . . 2 . . . . . . . . . . . . . . . . . . . 1 Fabnet Peak Effective % . | . . . . . . . . . . . . . . . . . . . . . . . . . . Robots Rewired 17 | . . . . . . . . . . . . . . . . . . . . . . 17 . . . Allies Hacked 1 | . . . . . . . . . . . . . . . . . . . . . 1 . . . . Hacks Repelled . | . . . . . . . . . . . . . . . . . . . . . . . . . . Allies | -11 -10 -10 -9 -9 -6 -6 -6 -6 -6 -6 -5 -5 -5 -5 -5 -5 -5 -4 -4 -4 -4 -4 -4 -4 -4 -------- Run | Yrd Mat Sub Rec Scr Fac Was Fac Low Low Zio Pro Fac Was Fac Upp Upp Zhi Pro Fac Was Fac Ext Cet Arc Hub Total Allies 63 | . . . . . . . 4 . . 4 . 1 . 1 . . . . 4 20 3 26 . . . Largest Group 20 | . . . . . . . 4 . . 4 4 2 . 1 . . . . 3 20 20 5 2 . . Highest-Rated Group 792 | . . . . . . . 48 . . 81 81 53 . 26 . . . . 141 764 792 322 97 . . Highest-Rated Ally 159 | . . . . . . . 12 . . 28 28 28 . 26 . . . . 47 50 50 159 51 . . Total Orders 1 | . . . . . . . . . . . . . . . . . . . . . . . 1 . . ROAM 1 | . . . . . . . . . . . . . . . . . . . . . . . 1 . . Ally Attacks 295 | . . . . . . . 21 . . . 16 5 . . . . . . 6 . 124 118 5 . . Total Damage 8893 | . . . . . . . 253 . . . 300 90 . . . . . . 145 . 4569 3418 118 . . Kills 59 | . . . . . . . 1 . . . 3 . . . . . . . . . 29 25 1 . . Allies Corrupted 5 | . . . . . . . . . . . . . . . . . . . 2 . 1 2 . . . Allies Melted 1 | . . 1 . . . . . . . . . . . . . . . . . . . . . . . Intel | -11 -10 -10 -9 -9 -6 -6 -6 -6 -6 -6 -5 -5 -5 -5 -5 -5 -5 -4 -4 -4 -4 -4 -4 -4 -4 ------- Run | Yrd Mat Sub Rec Scr Fac Was Fac Low Low Zio Pro Fac Was Fac Upp Upp Zhi Pro Fac Was Fac Ext Cet Arc Hub Active Infowar (turns) 9751 | 7 919 502 . . 1116 17 956 349 170 433 243 810 24 799 152 104 90 162 979 157 1071 543 126 22 . Optics 497 | . . 497 . . . . . . . . . . . . . . . . . . . . . . . Sensors 7970 | . . . . . 1105 17 956 349 170 433 243 810 24 799 152 104 84 162 879 . 1011 524 126 22 . IFF 11 | . . . . . 11 . . . . . . . . . . . . . . . . . . . . Structural 5763 | . . . . . 512 . 244 341 170 238 242 728 24 565 103 101 87 162 977 157 991 121 . . . Seismic 931 | 7 919 5 . . . . . . . . . . . . . . . . . . . . . . . Cloaking 759 | . . . . . . . . . . . . . . . . . . . . 129 372 258 . . . ECM 1996 | . . . . . . . . . . . . 81 . 93 . . . . 736 157 753 176 . . . Robot Analysis Total 16 | . 4 . 1 . 2 . 2 . . . . 1 . . . . 4 . 1 . . . . . 1 Derelict Logs Recovered 9 | . . 2 . . . . . 2 . 1 1 . . . 1 1 . 1 . . . . . . . Drone Launches . | . . . . . . . . . . . . . . . . . . . . . . . . . . Drone Recoveries . | . . . . . . . . . . . . . . . . . . . . . . . . . . Exploration | -11 -10 -10 -9 -9 -6 -6 -6 -6 -6 -6 -5 -5 -5 -5 -5 -5 -5 -4 -4 -4 -4 -4 -4 -4 -4 ------------- Run | Yrd Mat Sub Rec Scr Fac Was Fac Low Low Zio Pro Fac Was Fac Upp Upp Zhi Pro Fac Was Fac Ext Cet Arc Hub Turns Passed 14985 | 76 919 2571 1070 1477 1447 17 968 349 170 433 243 810 24 799 152 104 90 162 987 157 1071 561 126 28 174 Spaces Moved 22002 | 53 419 1822 762 1166 3107 75 2053 375 298 988 265 2031 83 1908 380 320 175 317 2002 150 2027 718 119 35 354 Core 165 | 3 . . . 150 . . . . . . . . . . . . . . . . . 4 . . 8 Treads . | . . . . . . . . . . . . . . . . . . . . . . . . . . Legs . | . . . . . . . . . . . . . . . . . . . . . . . . . . Wheels 4125 | 50 419 1822 762 1016 56 . . . . . . . . . . . . . . . . . . . . Hover . | . . . . . . . . . . . . . . . . . . . . . . . . . . Flight 17712 | . . . . . 3051 75 2053 375 298 988 265 2031 83 1908 380 320 175 317 2002 150 2027 714 119 35 346 Fastest Speed 19 | 50 95 90 135 50 20 21 21 26 26 21 28 19 22 22 29 29 29 28 28 29 28 29 31 34 34 Average Speed 45 | 85 105 118 135 124 27 21 25 27 28 28 28 21 22 26 29 29 29 30 29 29 29 34 40 45 36 Slowest Speed 500 | 95 125 150 135 135 175 21 29 29 29 29 28 28 22 102 29 29 29 107 31 29 111 500 114 114 114 Overloaded Moves . | . . . . . . . . . . . . . . . . . . . . . . . . . . Propulsion Burnouts . | . . . . . . . . . . . . . . . . . . . . . . . . . . Robots Hopped 110 | . . . . . 10 . 14 1 . . 2 10 . 22 . . . . 11 . 10 25 . 1 4 Potential Cave-ins 5 | . . . . . . . . . . . . . . . . . . . . . . . . . 5 Cave-ins Triggered . | . . . . . . . . . . . . . . . . . . . . . . . . . . Exploration Rate (%) 63 | 5 67 96 99 74 79 81 55 84 51 87 54 59 70 52 62 66 61 55 57 77 54 75 48 52 42 Regions Visited 25 Branch Regions 15 Pre-discovered Areas 30 | . . 2 5 5 3 . 4 1 . 2 . . . . . . 3 1 3 . 1 . . . . Known Exits Taken 15 | . . . 1 . . . 1 1 1 1 1 . . 1 1 1 1 1 . . 1 1 1 1 . Unknown Exits Taken 4 | 1 1 1 . 1 . . . . . . . . . . . . . . . . . . . . . Scrap Searched 28 | . . 8 . 3 . . . 4 1 3 2 . . . 3 . . 4 . . . . . . . Spaces Dug 307 | . 8 32 3 . 60 . 41 1 4 . 1 33 . 40 5 2 . 5 34 . 28 2 . . 8 Terrain Destroyed 730 | . 9 53 11 . 86 . 69 1 4 . 1 33 . 40 5 2 . 5 34 . 28 2 4 . 343 Melee 270 | . 2 9 3 . 60 . 41 1 4 . 1 33 . 40 5 2 . 5 34 . 28 2 . . . Projectile 35 | . 7 10 1 . 5 . . . . . . . . . . . . . . . . . 4 . 8 AOE 425 | . . 34 7 . 21 . 28 . . . . . . . . . . . . . . . . . 335 Terrain Rammed . | . . . . . . . . . . . . . . . . . . . . . . . . . . Walls Destroyed . | . . . . . . . . . . . . . . . . . . . . . . . . . . Machines Disabled . | . . . . . . . . . . . . . . . . . . . . . . . . . . Actions | -11 -10 -10 -9 -9 -6 -6 -6 -6 -6 -6 -5 -5 -5 -5 -5 -5 -5 -4 -4 -4 -4 -4 -4 -4 -4 --------- Run | Yrd Mat Sub Rec Scr Fac Was Fac Low Low Zio Pro Fac Was Fac Upp Upp Zhi Pro Fac Was Fac Ext Cet Arc Hub Total 26063 | 69 850 2082 788 1199 3582 75 2425 620 375 1140 426 2335 87 2099 412 326 205 375 2318 262 2426 988 172 42 385 Wait 3060 | . 399 120 8 3 316 1 312 237 63 143 159 235 4 130 20 2 . 51 231 110 336 156 15 4 5 Move 21771 | 52 418 1821 761 1165 3088 74 2024 372 297 987 261 2011 82 1866 379 319 174 316 1980 149 2006 673 118 32 346 Hop 99 | . . . . . 9 . 14 1 . . 1 10 . 19 . . . . 11 . 10 19 . 1 4 Pick Up 85 | 4 6 5 2 23 12 . 2 1 1 1 . 3 1 4 3 . 3 . 6 . 2 4 . . 2 Fast Attach 105 | 7 2 5 . 1 26 . 7 1 2 2 . 7 . 1 1 . 9 . 9 1 13 4 4 . 3 Attach 51 | . . 4 2 . 8 . 5 3 1 1 . 2 . 4 . 1 1 1 7 1 2 2 1 1 4 Detach 28 | . . 2 . . 2 . 2 3 . 1 . 2 . . 1 . 1 1 2 1 1 . 2 1 6 Swap 77 | . 4 16 1 . 7 . 7 . 2 1 . 5 . 8 1 . 1 . 4 . 7 13 . . . Drop 118 | . 3 11 . 7 20 . 4 1 4 3 . 8 . 6 1 1 10 1 9 . 13 6 6 . 4 Fire 148 | 6 16 60 1 . 11 . 2 . . . . 4 . . . . . . 10 . . . 26 3 9 Melee 422 | . 2 33 13 . 83 . 46 1 4 1 5 48 . 61 6 3 6 5 49 . 36 20 . . . Ram 2 | . . . . . . . . . . . . . . . . . . . . . . . . . 2 Kick . | . . . . . . . . . . . . . . . . . . . . . . . . . . Crush . | . . . . . . . . . . . . . . . . . . . . . . . . . . Escape Stasis 36 | . . . . . . . . . . . . . . . . . . . . . . 36 . . . Rewire 55 | . . . . . . . . . . . . . . . . . . . . . . 55 . . . Trap . | . . . . . . . . . . . . . . . . . . . . . . . . . . Miscellaneous 6 | . . 5 . . . . . . 1 . . . . . . . . . . . . . . . . Route ------- -11/Scrapyard -10/Materials (discovered 5 exits: *Mat x3 / [*Min] / *Sub) -10/Subcaves (discovered 3 exits: *Mat x2 / *Rec) -9/Recycling (discovered 2 exits: [*Fac] / *Scr) -9/Scraptown -6/Factory (discovered 6 exits: *Fac x4 / *Low x2) -6/Waste -6/Factory (discovered 6 exits: Fac x4 / *Low x2) -6/Lower Caves -6/Lower Caves (discovered 2 exits: Fac / *Zio) -6/Zion -5/Proximity Caves -5/Factory (discovered 5 exits: *Fac x4 / *Upp) -5/Waste -5/Factory (discovered 4 exits: *Fac x3 / *Upp) -5/Upper Caves -5/Upper Caves (discovered 2 exits: *Fac / *Zhi) -5/Zhirov -4/Proximity Caves -4/Factory (discovered 3 exits: *Res x2 / *Upp) -4/Waste -4/Factory (discovered 5 exits: Res / *Upp x2 / *Ext x2) -4/Extension (discovered 2 exits: *Res / *Cet) -4/Cetus -4/Archives -4/Hub_04(d) (discovered 4 exits: Res x4) History --------- Turn | Location | Event 13 | -11/Scrapyard | Discovered new exit (range 16) 77 | -11/Scrapyard | Entered Materials 125 | -10/Materials | Discovered new exit (range 9) 203 | -10/Materials | Discovered new exit (range 15) 252 | -10/Materials | Central database locked down 304 | -10/Materials | Build established: Mutant 312 | -10/Materials | Discovered new exit (range 5) 568 | -10/Materials | Discovered new exit (range 9) 596 | -10/Materials | Learned location of 1 exit from Recycling 713 | -10/Materials | Learned 2 Storage zone layouts 757 | -10/Materials | Learned Storage security intel 792 | -10/Materials | Identified exit to Materials 792 | -10/Materials | Learned location of 1 exit from Materials 850 | -10/Materials | Learned 4 Subcaves zone layouts 894 | -10/Materials | Learned location of 1 exit from Storage 947 | -10/Materials | Learned location of 2 exits from Subcaves 996 | -10/Materials | Entered Subcaves 997 | -10/Subcaves | Ambushed by Subdwellers from Twisted Machinery 997 | -10/Subcaves | Identified exit to Materials 1016 | -10/Subcaves | Learned Materials garrison access intel 1895 | -10/Subcaves | Shifting Twisted Machinery released Battle Cannon 1896 | -10/Subcaves | Shifting Twisted Machinery released Battle Cannon 1928 | -10/Subcaves | Learned location of Zion (-6) 1928 | -10/Subcaves | Met a Zionite searching for "candidates" 2342 | -10/Subcaves | Disturbed a concealed Subdweller 2489 | -10/Subcaves | A swath of the cavern ceiling suddenly collapsed 3038 | -10/Subcaves | Shifting Twisted Machinery released Riot Gun 3053 | -10/Subcaves | Shifting Twisted Machinery released Shrapnel Trap 3095 | -10/Subcaves | Discovered new exit (range 10) 3386 | -10/Subcaves | Visited 4L-MR0's lab 3402 | -10/Subcaves | Found Rainbow Chip 3567 | -10/Subcaves | Entered Recycling 3568 | -9/Recycling | Identified exit to Scraptown 3914 | -9/Recycling | Discovered new exit (range 5) 4602 | -9/Recycling | Scanned before Scraplab entrance 4621 | -9/Recycling | Entered Scraplab 4637 | -9/Recycling | Entered Scraptown 5029 | -9/Scraptown | Visited Symbiants 5050 | -9/Scraptown | Visited Spacefarers 5093 | -9/Scraptown | Visited Assassins FH 5135 | -9/Scraptown | Visited UFD Registry 5135 | -9/Scraptown | Registered with UFD as "Wrenchtail" 5154 | -9/Scraptown | Visited Cyclists 5163 | -9/Scraptown | Entered Cyclist Reading Room 5204 | -9/Scraptown | Visited Comm Corps 5236 | -9/Scraptown | Heard Great Nut preacher, LISTEN AND RECITE! 5248 | -9/Scraptown | Visited IN-MT5's Study 5270 | -9/Scraptown | Visited Awakened 5340 | -9/Scraptown | Visited Derelict Rescue Squad 5350 | -9/Scraptown | Found DRS Beacon 5390 | -9/Scraptown | Visited Chapter 10 5409 | -9/Scraptown | Visited Infowarlord's Domain 5430 | -9/Scraptown | Visited Research Penetration Think Tank 5460 | -9/Scraptown | Visited Scrap Suit Storage 5477 | -9/Scraptown | Visited Observation Area 5496 | -9/Scraptown | Visited Scrapoid Pod Storage 5519 | -9/Scraptown | Visited A0-MCA Data Center 5542 | -9/Scraptown | Visited Abandonware Association 5556 | -9/Scraptown | Learned abandonware demo "REPAIR.EXE" 5556 | -9/Scraptown | Learned abandonware demo "REVENGE.EXE" 5558 | -9/Scraptown | Learned abandonware demo "OVRCLOCK.EXE" 5592 | -9/Scraptown | Visited Cartography Club 5621 | -9/Scraptown | Found Surveybot 17 Chip 5652 | -9/Scraptown | Found Deep Structural Scanner 5674 | -9/Scraptown | Learned location of Cetus (-4) 5674 | -9/Scraptown | Learned location of Armory (-3) 5674 | -9/Scraptown | Learned location of Testing (-3) 5674 | -9/Scraptown | Learned 8 Factory zone layouts 5674 | -9/Scraptown | Learned 16 Factory zone layouts 5674 | -9/Scraptown | Learned 20 Factory zone layouts 5674 | -9/Scraptown | Learned 8 Research zone layouts 5674 | -9/Scraptown | Learned 4 Mines zone layouts 5674 | -9/Scraptown | Learned 8 Lower Caves zone layouts 5674 | -9/Scraptown | Learned 16 Upper Caves zone layouts 5674 | -9/Scraptown | Learned 16 Proximity Caves zone layouts 5674 | -9/Scraptown | Learned Materials emergency access door positions 5674 | -9/Scraptown | Learned location of 2 exits from Research 5674 | -9/Scraptown | Learned location of 3 exits from Lower Caves 5674 | -9/Scraptown | Learned location of 3 exits from Upper Caves 5785 | -9/Scraptown | Found Spectral Analyzer 5926 | -9/Scraptown | Given a C- rating by A0-MCA 5929 | -9/Scraptown | Found A0-MCA's Component Scanner 5975 | -9/Scraptown | Discovered new exit (range 5) 6045 | -9/Scraptown | Met Optimus 6045 | -9/Scraptown | Accepted into 0bPrime 6114 | -9/Scraptown | Entered Factory 6114 | -6/Factory | Evolved 8 slots: Propulsion x4, Utility x4 6115 | -6/Factory | Identified exit to Lower Caves 6116 | -6/Factory | Identified exit to Factory 6193 | -6/Factory | Repaired Bore Cannon 6364 | -6/Factory | Lost 3 parts (1n1u1w) 6411 | -6/Factory | Loaded intel: 8 recycling unit locations 6499 | -6/Factory | Learned location of Protoforge (-2) 6632 | -6/Factory | Lost 3 parts (1p1n1w) 6661 | -6/Factory | Spotted B-75 Beast 6670 | -6/Factory | Learned 2 Upper Caves zone layouts 6678 | -6/Factory | Central database locked down 6744 | -6/Factory | Build established: Hacker-Sprinter 6844 | -6/Factory | Learned 2 Upper Caves zone layouts 6849 | -6/Factory | Discovered exit to Factory (range 8) 6882 | -6/Factory | Learned location of 1 exit from Lower Caves 6908 | -6/Factory | Learned 2 Upper Caves zone layouts 6924 | -6/Factory | Learned location of Proximity Caves (-4) 6951 | -6/Factory | Learned 4 Hub_04(d) zone layouts 6988 | -6/Factory | Learned 4 Hub_04(d) zone layouts 7033 | -6/Factory | Learned location of 3 exits from Factory 7118 | -6/Factory | Build established: Hacker-Scout 7514 | -6/Factory | Search patrols dispatched 7561 | -6/Factory | Manually triggered Chute Trap 7561 | -6/Factory | Sucked down chute 7561 | -6/Factory | Entered Waste 7562 | -6/Waste | Identified exit to Factory 7566 | -6/Waste | Spotted C-40 Crusher 7570 | -6/Waste | Spotted C-40 Crusher 7571 | -6/Waste | Spotted C-40 Crusher 7571 | -6/Waste | Spotted C-40 Crusher 7576 | -6/Waste | EMP discharged 7576 | -6/Waste | System corruption reached 10% 7578 | -6/Waste | Entered Factory 7649 | -6/Factory | Build established: Hacker-Sprinter 7660 | -6/Factory | Fabricated S-27 Virus (x4) 7706 | -6/Factory | Loaded intel: 8 recycling unit locations 8059 | -6/Factory | Learned Extension emergency access door positions 8135 | -6/Factory | Learned location of 1 exit from Upper Caves 8136 | -6/Factory | Hacking Suite fried by hacking feedback 8256 | -6/Factory | Fabricated Imp. System Restoration Module? 8302 | -6/Factory | Loaded intel: 6 fabricator locations 8321 | -6/Factory | Central database locked down 8340 | -6/Factory | Learned location of Upper Caves (-4) 8410 | -6/Factory | Learned 2 Lower Caves zone layouts 8438 | -6/Factory | Build established: Sprinter 8461 | -6/Factory | Learned 2 Extension zone layouts 8546 | -6/Factory | Entered Lower Caves 8547 | -6/Lower Caves | Identified exit to Lower Caves 8863 | -6/Lower Caves | Build established: Scout 8889 | -6/Lower Caves | Encountered a Warlord checkpoint 8895 | -6/Lower Caves | Entered another Lower Caves area 8896 | -6/Lower Caves | Identified exit to Zion 8939 | -6/Lower Caves | Activated DRS Beacon 9042 | -6/Lower Caves | Encountered a Warlord checkpoint 9065 | -6/Lower Caves | Entered Zion 9066 | -6/Zion | Identified exit to Proximity Caves 9071 | -6/Zion | Received a visual enhancement algorithm 9071 | -6/Zion | Ran a visual enhancement algorithm 9161 | -6/Zion | Given the Hacking Drone Bay 9218 | -6/Zion | Visited the Megawrench Repair Shop 9239 | -6/Zion | Learned location of 2 exits from Factory 9247 | -6/Zion | Learned Factory emergency access door positions 9330 | -6/Zion | Megawrench repaired 9 parts 9351 | -6/Zion | Build established: Hacker-Scout 9357 | -6/Zion | Turned away by Imprinter 9390 | -6/Zion | Gained Derelict followers 9498 | -6/Zion | Entered Proximity Caves 9498 | -5/Proximity Caves | Accompanied by 4 allies 9506 | -5/Proximity Caves | Learned Factory non-interactive machine intel 9675 | -5/Proximity Caves | Attracted the attention of an 0b10 checkpoint 9741 | -5/Proximity Caves | Entered Factory 9741 | -5/Factory | Accompanied by 2 allies 9741 | -5/Factory | Evolved 2 slots: Power x1, Propulsion x1 9742 | -5/Factory | Identified exit to Factory 9742 | -5/Factory | Identified exit to Upper Caves 9744 | -5/Factory | Loaded intel: 220 non-interactive machine locations 9789 | -5/Factory | Loaded intel: 8 recycling unit locations 10084 | -5/Factory | Discovered exit to Factory (range 15) 10171 | -5/Factory | Learned location of 2 exits from Research 10244 | -5/Factory | Repaired Cesium-ion Thruster 10248 | -5/Factory | Learned Extension security intel 10314 | -5/Factory | Learned 2 Proximity Caves zone layouts 10415 | -5/Factory | Loaded intel: 6 fabricator locations 10469 | -5/Factory | Learned Research emergency access door positions 10551 | -5/Factory | Manually triggered Chute Trap 10551 | -5/Factory | Sucked down chute 10551 | -5/Factory | Entered Waste 10552 | -5/Waste | Identified exit to Factory 10556 | -5/Waste | Spotted C-40 Crusher 10566 | -5/Waste | EMP discharged 10567 | -5/Waste | Spotted C-40 Crusher 10568 | -5/Waste | Spotted C-40 Crusher 10570 | -5/Waste | Spotted C-40 Crusher 10575 | -5/Waste | Entered Factory 10684 | -5/Factory | Discovered exit to Factory (range 4) 10812 | -5/Factory | Fabricated Graphene Brace (x2) 10835 | -5/Factory | Discovered exit to Upper Caves (range 10) 10932 | -5/Factory | Loaded intel: 8 recycling unit locations 11057 | -5/Factory | Learned Testing security intel 11086 | -5/Factory | Learned location of 2 exits from Upper Caves 11105 | -5/Factory | Learned Research trap positions 11113 | -5/Factory | Learned Extension stockpile data 11115 | -5/Factory | Learned Testing terminal intel 11116 | -5/Factory | Learned 2 Upper Caves zone layouts 11123 | -5/Factory | Loaded intel: 77 trap records 11141 | -5/Factory | Learned Factory trap positions 11175 | -5/Factory | Search patrols dispatched 11374 | -5/Factory | Entered Upper Caves 11375 | -5/Upper Caves | Identified exit to Upper Caves 11390 | -5/Upper Caves | Encountered a Warlord checkpoint 11422 | -5/Upper Caves | Found Alien Artifact 11500 | -5/Upper Caves | Learned Research security intel 11500 | -5/Upper Caves | Learned Research stockpile data 11500 | -5/Upper Caves | Learned Factory emergency access door positions 11500 | -5/Upper Caves | Learned 8 Research zone layouts 11513 | -5/Upper Caves | Learned 8 Factory zone layouts 11526 | -5/Upper Caves | Entered another Upper Caves area 11527 | -5/Upper Caves | Identified exit to Zhirov 11541 | -5/Upper Caves | Learned location of 1 exit from Factory 11607 | -5/Upper Caves | Encountered a Warlord checkpoint 11630 | -5/Upper Caves | Entered Zhirov 11630 | -5/Zhirov | Discovered new exit (range 3) 11631 | -5/Zhirov | Identified exit to Proximity Caves 11636 | -5/Zhirov | Met Zhirov 11642 | -5/Zhirov | Learned location of Command (-1) 11646 | -5/Zhirov | Zhirov requested help retrieving the SGEMP Prototype 11651 | -5/Zhirov | Found Alien Artifact 11651 | -5/Zhirov | Identified Integrated Reactor 11651 | -5/Zhirov | Installed Integrated Reactor, increased core energy generation (+10) 11657 | -5/Zhirov | Found Alien Artifact 11720 | -5/Zhirov | Entered Proximity Caves 11792 | -4/Proximity Caves | Encountered an infested base 11881 | -4/Proximity Caves | Attracted the attention of an 0b10 checkpoint 11882 | -4/Proximity Caves | Entered Factory 11882 | -4/Factory | Evolved 2 slots: Propulsion x1, Utility x1 11883 | -4/Factory | Identified exit to Research 11885 | -4/Factory | Loaded intel: 79 trap records 11943 | -4/Factory | Identified Transdimensional Reconstructor 11943 | -4/Factory | Identified Dimensional Node Initializer 11959 | -4/Factory | Loaded intel: 8 recycling unit locations 12232 | -4/Factory | Build established: Hacker-Ninja 12341 | -4/Factory | Discovered new exit (range 14) 12413 | -4/Factory | Learned Testing terminal intel 12467 | -4/Factory | Learned Armory fabricator intel 12470 | -4/Factory | Discovered exit to Research (range 12) 12547 | -4/Factory | Learned Research trap positions 12576 | -4/Factory | Attached Rainbow Chip, gained temporary slots: Power, Propulsion, Utility, Weapon 12602 | -4/Factory | Learned location of Warlord (-4) 12627 | -4/Factory | Learned 2 Upper Caves zone layouts 12663 | -4/Factory | Learned 4 Research zone layouts 12707 | -4/Factory | Learned Armory emergency access door positions 12771 | -4/Factory | Spotted B-86 Titan 12869 | -4/Factory | Manually triggered Chute Trap 12869 | -4/Factory | Sucked down chute 12869 | -4/Factory | Entered Waste 12870 | -4/Waste | Joined by Warlord forces that had cleared the area 12928 | -4/Waste | Discovered new exit (range 12) 13026 | -4/Waste | Entered Factory 13026 | -4/Factory | Accompanied by 20 allies 13103 | -4/Factory | Discovered new exit (range 16) 13176 | -4/Factory | Identified exit to Upper Caves 13205 | -4/Factory | Fabricated G-67 Veteran (x3) 13246 | -4/Factory | Lost 8 allies 13276 | -4/Factory | First assault squad dispatched 13355 | -4/Factory | Spotted B-86 Titan 13447 | -4/Factory | Fabricated Exp. Signal Interpreter? 13673 | -4/Factory | Learned Quarantine stockpile data 13676 | -4/Factory | Identified exit to Extension 13704 | -4/Factory | Learned 2 Upper Caves zone layouts 13725 | -4/Factory | Learned location of 2 exits from Research 13726 | -4/Factory | Spotted B-86 Titan 13738 | -4/Factory | Learned 4 Upper Caves zone layouts 13743 | -4/Factory | Learned 4 Research zone layouts 13744 | -4/Factory | Learned Research trap positions 13755 | -4/Factory | Learned Research stockpile data 13773 | -4/Factory | Learned Testing terminal intel 13793 | -4/Factory | Loaded intel: 8 recycling unit locations 13891 | -4/Factory | Discovered exit to Research (range 17) 14097 | -4/Factory | Entered Extension 14124 | -4/Extension | Loaded intel: 2 recycling unit locations 14208 | -4/Extension | Lost 3 allies 14282 | -4/Extension | Spotted B-86 Titan 14283 | -4/Extension | Spotted B-86 Titan 14301 | -4/Extension | Rescued a captive Derelict 14301 | -4/Extension | Rescued a captive Derelict 14309 | -4/Extension | Lost 4 allies 14310 | -4/Extension | Rescued A7 14314 | -4/Extension | Rescued a captive Derelict 14401 | -4/Extension | Rescued a captive Derelict 14403 | -4/Extension | Rescued a captive Derelict 14432 | -4/Extension | Extracted ID and sensor layout for unrecognized location from A7's data core 14456 | -4/Extension | Rescued a captive Derelict 14458 | -4/Extension | Rescued a captive Derelict 14472 | -4/Extension | Lost 7 allies 14623 | -4/Extension | Discovered exit to Research (range 10) 14623 | -4/Extension | Discovered new exit (range 6) 14630 | -4/Extension | Identified exit to Cetus 14658 | -4/Extension | Entered Cetus 14658 | -4/Cetus | Accompanied by 2 allies 14688 | -4/Cetus | Destroyed Cetus Guard 14714 | -4/Cetus | Destroyed Cetus Guard 14739 | -4/Cetus | Destroyed Cetus Guard 14779 | -4/Cetus | Discovered new exit (range 16) 14784 | -4/Cetus | Identified exit to Archives 14784 | -4/Cetus | Entered Archives 14807 | -4/Archives | Discovered new exit (range 13) 14811 | -4/Archives | Identified exit to Hub_04(d) 14812 | -4/Archives | Entered Hub_04(d) 14818 | -4/Hub_04(d) | Identified exit to Garrison 14823 | -4/Hub_04(d) | Network Hub disabled 14858 | -4/Hub_04(d) | Network Hub disabled 14874 | -4/Hub_04(d) | Spotted Lightning 14883 | -4/Hub_04(d) | Spotted Lightning 14883 | -4/Hub_04(d) | Spotted Lightning 14885 | -4/Hub_04(d) | Core integrity fell below 50% 14973 | -4/Hub_04(d) | Spotted B-86 Titan 14973 | -4/Hub_04(d) | Spotted Lightning 14973 | -4/Hub_04(d) | Spotted Lightning 14975 | -4/Hub_04(d) | Spotted Lightning 14985 | -4/Hub_04(d) | Core integrity fell below 20% 14986 | -4/Hub_04(d) | Destroyed by Lightning with EMDS Last Messages --------------- 14981_ EMDS Slug penetrates Garrison Access. 14981_ C-30 ARC bursts open, deploying its payload. 14981_ G-73 Enforcer unfolds itself. 14981_ G-67 Veteran unfolds itself. 14981_ I-47 Archangel unfolds itself. 14982_ Slammed into G-67 Veteran. 14982_ Penetrated by Slug. 14982_ Rainbow Chip destroyed. 14982_ Knocked back. 14983_ EMDS Slug penetrates Garrison Access. 14983_ Temporary Power slot lost. 14983_ Temporary Utility slot lost. 14983_ Temporary Weapon slot lost. 14984_ Penetrated by EMDS Slug. 14984_ Slammed into G-67 Veteran. 14984_ Knocked back. 14984_ EMDS Slug penetrates Lightning. 14985_ Acquired 83 matter. 14986_ Penetrated by EMDS Slug. Map ----- +----------------------------------------------------+ | ????????????????????#= = # #???# | | ????????????????????# # #???# | | ????????????????????# #################### | | ?????????????######## #?# ## | | ?????????????# += #?# ##"""" | | ?????????????# ###### #?# ##"""" | | ?????????????# #?########+#######"""" ##"""" | | ????##########+###"##### # #"""" ##"""" | | ????# # # #"""" ## | | ????# ==/ # # #"""" ## | | ???# ==/ # # # ## | | ???## = / # # # ## | | ????# # # #+###+#########+## | | ????# # # # | | ????# + # + | | ????# # # # | | ????################+###[%# # ############### | | ????????????????# BB !*!!# # #?????????????? | | ????????????????# BB !!!%# + #?????????????? | | ????????????????### h"!!# ## #?????????????? | | ??????????????????#i% h![ # ## #?????????????? | | ???????????????#### h # ## #?????????????? | | ???????????????+ % ######## #?????????????? | | ???????????????+ % ########+##????????????? | | ???????????????###+##### g# #????????????? | | ????????????????# ???#g @# < #????????????? | | ????????????????#" ???## g/i #????????????? | | ????????????????#" ????#g #####+###############??? | | ?????????????????" ???## ##??# # ??? | | ????????????????? ???# ! #### # " " " " " " "??? | | ?????????????????"???? Hw # " " " " " " "??? | | ??????????????????????# + " " " " " " "??? | | ??????????????????????# #### # ??? | | ??????????????????????##+######/###############??? | | ?????????????????????? #??????# #?????? | | ?????????????????????? """" """" #??????# #?????? | | ?????????????????????? """" """" #??????# #?????? | | ?????????????????????? """" """" #??????# #?????? | | ?????????????????????? """" """" #??????# #?????? | | ?????????????????????? ######## #?????? | | ?????????????????????? """" # #?????? | | ?????????????????????? """" ##########?????? | | ?????????????????????? """" #??????????????? | | ?????????????????????? """" #??????????????? | | ?????????????????????? #??????????????? | | ?????????????????????? #??????????????? | | ??????????????????????########### #??????????????? | | ????????????????????????????????###??????????????? | | ?????????????????????????????????????????????????? | | | +----------------------------------------------------+ Best States ------------- Heat Dissipation 43 Energy Generation 47 Energy Capacity 400 Matter Stores 300 Matter Capacity 300 Sight Range 21 Robot Scan Range 18 Terrain Scan Density 10 ECM Strength 2 Cloak Strength 4 EM Shielding 4 Corruption Block 8 Armor Coverage 800 Utility Shielding 66 Weapon Shielding 66 Evasion (%) 73 Core Analysis 6 Offensive Hacking 26 Defensive Hacking 11 Authchip Count 3 Item Schematics ----------------- VTOL Module | -9/Recycling | Hacked Biomechanical Wings | -6/Factory | Hacked Spectral Analyzer | -6/Factory | Scanalyzed Imp. System Restoration Module | -6/Factory | Scanalyzed Bore Cannon | -6/Factory | Scanalyzed CPS Tube | -6/Factory | Scanalyzed Imp. Grenade Launcher | -6/Factory | Scanalyzed Flak Cannon | -6/Factory | Extracted Imp. Terrain Scanner | -6/Factory | Extracted Hcp. Storage Unit | -6/Factory | Extracted Imp. Propulsion Shielding | -6/Factory | Extracted Adv. Plasma Cannon | -6/Zion | Archive Thermic Laser | -6/Zion | Archive Hvy. Plasma Cannon | -6/Zion | Archive Imp. Thermal Shield | -6/Zion | Archive Phase Gun | -6/Zion | Archive Imp. Particle Charger | -6/Zion | Archive Adv. Recoil Stabilizer | -6/Zion | Archive Imp. System Shield | -6/Zion | Archive Imp. Remote Datajack | -6/Zion | Archive Fusion Compressor | -6/Zion | Archive Variable Charge Gun | -6/Zion | Archive Drone Bay | -6/Zion | Archive Imp. Launcher Guidance Computer | -6/Zion | Archive Imp. Cryofiber Web | -6/Zion | Archive Adv. Cryofiber Web | -6/Zion | Archive Lrn. Sensor Array | -5/Factory | Hacked Adv. Reaction Control System | -5/Factory | Downloaded Exp. Propulsion Shielding | -5/Factory | Hacked Imp. Carbon-fiber Leg | -5/Factory | Extracted Exp. Utility Shielding | -5/Factory | Hacked Imp. Plasma Cutter | -5/Factory | Hacked Enh. Gauss Cannon | -5/Factory | Extracted Greatsword | -5/Factory | Extracted Remote Datajack | -5/Factory | Extracted Imp. Recalibrator | -5/Factory | Extracted Arm. Leg | -5/Factory | Extracted Hvy. Machine Gun | -5/Factory | Extracted Q-thruster | -5/Factory | Scanalyzed Flail | -5/Factory | Extracted Linear Gravjet | -5/Factory | Extracted Imp. Medium Treads | -5/Factory | Extracted Assault Drone Bay | -5/Zhirov | Free Exp. Heat Sink | -5/Zhirov | Free Exp. Optical Array | -5/Zhirov | Free Imp. Arc Thrower | -5/Zhirov | Free Adv. Dynamic Insulation System | -4/Factory | Scanalyzed Graphene Brace | -4/Factory | Scanalyzed Lrn. Terrain Scanner | -4/Factory | Hacked Lgt. Antimatter Reactor | -4/Factory | Hacked Field Propulsion Array | -4/Factory | Hacked Exp. Signal Interpreter | -4/Factory | Hacked Adv. System Restoration Module | -4/Factory | Scanalyzed Stasis Canceller | -4/Factory | Scanalyzed Robot Schematics ------------------ T-07 Excavator | -6/Zion | Archive G-50 Soldier | -6/Zion | Archive G-47 Trooper | -6/Zion | Archive G-73 Enforcer | -6/Zion | Archive Fabricated ------------ S-27 Virus | x4 | -6/Factory | Preloaded Imp. System Restoration Module | x2 | -6/Factory | Authchip Graphene Brace | x2 | -5/Factory | Preloaded G-67 Veteran | x3 | -4/Factory | Preloaded Exp. Signal Interpreter | x1 | -4/Factory Repaired ---------- Bore Cannon | 9% | -6/Factory Cesium-ion Thruster | 4% | -5/Factory Alien Tech Used ----------------- Integrated Reactor Achievements -------------- None Challenges ------------ None Game ------ Seed ThermalTacticalRedistributor Manual? 0 Play Time 04:21:02 Cumulative 501.3 hours Start 2025.08.29 @ 10:54:58 End 2025.08.31 @ 13:14:20 Sessions 8 Manual Loads 0 Difficulty Rogue Special Mode None Game No. 215 Rogue 215 Adventurer 0 Explorer 0 Win Type - Total 34 Types 14/2/6/2/5/1/0/2/0/2 Lore% 95 Gallery% 87 Achievement% 80 Wizard Run 0 Options --------- Layout 1 ASCII 0 Keyboard 0 Movement Numpad Keybinds 0 Fullscreen 1 Font 24/Smallcaps Map View 50x35 Zoom Use 0% Tactical HUD 1 Map Filters NONE Filters NONE Steam 1 RUN: 9e3103e5-281b-4454-bf93-c8a32b6297d0